bitfinex/quotes_BTCUSD_20241120
["timestamp","ask_amount","ask_price","bid_price","bid_amount"]
[1732129774035,0.107015,93445.0,93441.0,0.0008562]
[1732129774239,0.182916,93444.0,93441.0,0.0008562]
[1732129774365,0.0759,93444.0,93441.0,0.0864712]
[1732129774786,0.17111995,93444.0,93441.0,0.0864712]
[1732129774986,0.0759,93444.0,93441.0,0.0864712]
[1732129775218,0.17111995,93444.0,93441.0,0.0008562]
[1732129775422,0.107018,93442.0,93441.0,0.0008562]
[1732129775615,0.0759,93444.0,93441.0,0.0008562]
[1732129775616,0.27813595,93444.0,93441.0,0.0008562]
[1732129776043,0.09521995,93443.0,93441.0,0.0008562]
[1732129776254,0.182916,93444.0,93441.0,0.0008562]
[1732129776661,0.0759,93444.0,93441.0,0.0008562]
[1732129778124,0.107018,93442.0,93441.0,0.0008562]
[1732129778329,0.21413312,93442.0,93441.0,0.0008562]
[1732129779270,0.107029,93432.0,93428.0,0.0008563]
[1732129779472,0.214048,93437.0,93428.0,0.0008563]
[1732129779627,0.32116312,93437.0,93428.0,0.0008563]
[1732129779836,0.107032,93430.0,93428.0,0.0008563]
[1732129780290,0.107033,93429.0,93428.0,0.0008563]
[1732129781388,0.21414812,93429.0,93428.0,0.0008563]
[1732129781957,0.30927101,93429.0,93428.0,0.0008563]
[1732129782157,0.24670456,93429.0,93428.0,0.0008563]
[1732129782985,0.21414812,93429.0,93428.0,0.0008563]
[1732129784048,0.21414812,93429.0,93428.0,0.04353207]
[1732129784428,0.21414812,93429.0,93428.0,0.0008563]
[1732129784639,0.30909144,93429.0,93428.0,0.0008563]
[1732129784786,0.40521067,93429.0,93428.0,0.0008563]
[1732129784993,0.9688591,93429.0,93428.0,0.0008563]
[1732129785190,0.77861332,93429.0,93428.0,0.0008563]
[1732129785581,0.81116976,93429.0,93428.0,0.0008563]
[1732129785971,0.81116976,93429.0,93417.0,0.0008555]
[1732129785972,0.107045,93418.0,93417.0,0.0008555]
[1732129786193,0.36957117,93418.0,93417.0,0.0008555]
[1732129786399,0.36957117,93418.0,93417.0,0.0003555]
[1732129786596,0.46444489,93418.0,93417.0,0.0003555]
[1732129786794,0.37957117,93418.0,93417.0,0.0003555]
[1732129787044,0.47863372,93418.0,93417.0,0.0003555]
[1732129787347,0.33701473,93418.0,93417.0,0.0003555]
[1732129787752,0.107052,93412.0,93411.0,0.0004]
[1732129787951,0.107052,93412.0,93399.0,0.0009255]
[1732129787952,0.107066,93400.0,93399.0,0.0009255]
[1732129788164,0.33703573,93400.0,93399.0,0.0009255]
[1732129788285,0.21418112,93400.0,93399.0,0.0009255]
[1732129788896,0.10711512,93400.0,93397.0,0.0008555]
[1732129789131,0.107068,93398.0,93397.0,0.0008555]
[1732129789361,0.21418312,93398.0,93397.0,0.0008555]
[1732129790475,0.29458312,93398.0,93397.0,0.0008555]
[1732129791646,0.10711512,93398.0,93397.0,0.0008555]
[1732129792104,0.21418312,93398.0,93397.0,0.0008555]
[1732129794293,0.607067,93399.0,93397.0,0.0008555]
[1732129794441,0.5,93399.0,93398.0,0.085654]
[1732129794648,0.5,93399.0,93397.0,0.0008555]
[1732129794880,0.5,93399.0,93397.0,0.0865105]
[1732129795089,0.5,93399.0,93398.0,0.085654]
[1732129795288,0.5,93414.0,93407.0,0.085646]
[1732129795487,0.5,93414.0,93397.0,0.0008555]
[1732129795488,0.10711512,93413.0,93405.0,0.085648]
[1732129795786,0.107052,93412.0,93407.0,0.085646]
[1732129796012,0.107054,93411.0,93405.0,0.085648]
[1732129796224,0.107054,93411.0,93406.0,0.085647]
[1732129796415,0.10711512,93413.0,93405.0,0.085648]
[1732129796416,0.21416612,93413.0,93405.0,0.085648]
[1732129796751,0.10711512,93413.0,93405.0,0.085648]
[1732129796884,0.21416712,93413.0,93407.0,0.085646]
[1732129797085,0.107055,93410.0,93404.0,0.085649]
[1732129797285,0.107055,93410.0,93405.0,0.085648]
[1732129797497,0.214105,93412.0,93402.0,0.08565]
[1732129797498,0.107056,93409.0,93402.0,0.08565]
[1732129797688,0.214107,93411.0,93399.0,0.085653]
[1732129797893,0.214107,93411.0,93397.0,0.0865105]
[1732129797894,0.107058,93408.0,93402.0,0.085651]
[1732129798335,0.107055,93410.0,93403.0,0.085649]
[1732129798547,0.107058,93407.0,93402.0,0.08565]
[1732129798891,0.10711512,93413.0,93397.0,0.0008555]
[1732129799149,0.10711512,93413.0,93404.0,0.085649]
[1732129799358,0.214107,93411.0,93402.0,0.085651]
[1732129799567,0.107057,93408.0,93403.0,0.08565]
[1732129799993,0.10711512,93413.0,93397.0,0.0008555]
[1732129800142,0.107059,93407.0,93400.0,0.085652]
[1732129800346,0.10711512,93413.0,93397.0,0.0865105]
[1732129800506,0.10711512,93413.0,93397.0,0.0008555]
[1732129800710,0.107068,93398.0,93397.0,0.0008555]
[1732129801129,0.10711512,93413.0,93397.0,0.0008555]
[1732129801341,0.107066,93400.0,93397.0,0.0008555]
[1732129801542,0.10711512,93413.0,93397.0,0.0008555]
[1732129801543,0.10711512,93413.0,93402.0,0.085651]
[1732129801775,0.01,93420.0,93398.0,0.085654]
[1732129801776,0.10711512,93412.0,93401.0,0.085652]
[1732129801967,0.10711512,93412.0,93407.0,0.085646]
[1732129802185,0.10711512,93412.0,93397.0,0.0008555]
[1732129802186,0.5381,93422.0,93397.0,0.0008555]
[1732129802440,0.59444512,93430.0,93417.0,0.085637]
[1732129802638,0.5,93430.0,93417.0,0.085637]
[1732129803039,0.107034,93428.0,93417.0,0.085637]
[1732129803266,0.5,93430.0,93417.0,0.085637]
[1732129803640,0.0782,93441.0,93417.0,0.085637]
[1732129803641,0.107021,93440.0,93417.0,0.08670739]
[1732129803840,0.09444512,93449.0,93417.0,0.09670732]
[1732129804053,0.107018,93442.0,93417.0,0.195637]
[1732129804244,0.428046,93448.0,93417.0,0.195637]
[1732129804497,0.107015,93445.0,93417.0,0.195637]
[1732129804780,0.107023,93438.0,93417.0,0.185637]
[1732129804971,0.107021,93440.0,93417.0,0.185637]
[1732129805222,0.214035,93443.0,93417.0,0.185637]
[1732129805426,0.33687761,93448.0,93417.0,0.185637]
[1732129805427,0.107021,93440.0,93417.0,0.195637]
[1732129805624,0.10703,93432.0,93417.0,0.185637]
[1732129806280,0.214052,93436.0,93417.0,0.185637]
[1732129806459,0.107026,93435.0,93417.0,0.185637]
[1732129807202,0.214045,93438.0,93417.0,0.185637]
[1732129807416,0.107027,93434.0,93417.0,0.185637]
[1732129809948,0.0017128,93418.0,93417.0,0.31275212]
[1732129810137,0.0017128,93418.0,93417.0,0.38915212]
[1732129811146,0.0017128,93418.0,93417.0,0.43425212]
[1732129811777,0.0017122,93452.0,93433.0,0.01]
[1732129811972,0.0017122,93452.0,93451.0,0.085606]
[1732129812198,0.0017122,93452.0,93434.0,0.00107006]
[1732129812199,0.0017122,93452.0,93435.0,0.01]
[1732129812330,0.0017122,93452.0,93451.0,0.085606]
[1732129813756,0.0017122,93452.0,93446.0,0.08561]
[1732129813968,0.0017122,93452.0,93425.0,0.1]
[1732129813969,0.214018,93450.0,93425.0,0.1]
[1732129814148,0.107023,93438.0,93432.0,0.085623]
[1732129814374,0.107023,93438.0,93402.0,0.0865064]
[1732129814375,0.10711512,93437.0,93409.0,0.087]
[1732129814579,0.214052,93435.0,93409.0,0.01]
[1732129814779,0.0803,93436.0,93409.0,0.01]
[1732129814780,0.0803,93436.0,93422.0,0.085632]
[1732129814987,0.18741512,93436.0,93428.0,0.085627]
[1732129815201,0.10711512,93435.0,93407.0,0.01]
[1732129815406,0.10711512,93435.0,93353.0,0.14293054]
[1732129815407,0.107034,93428.0,93403.0,0.08565]
[1732129815613,0.214073,93426.0,93418.0,0.085635]
[1732129815819,0.10711512,93425.0,93413.0,0.085641]
[1732129816024,0.10711512,93425.0,93399.0,0.0108566]
[1732129816025,0.107042,93422.0,93416.0,0.085638]
[1732129816235,0.10711512,93421.0,93417.0,0.085637]
[1732129816475,0.14166769,93434.0,93409.0,0.13285461]
[1732129816685,0.09444512,93433.0,93405.0,0.01]
[1732129816895,0.03153407,93430.0,93404.0,0.085649]
[1732129817099,0.20156024,93432.0,93422.0,0.085632]
[1732129817309,0.107032,93430.0,93424.0,0.08563]
[1732129817562,0.107032,93430.0,93425.0,0.085629]
[1732129818410,0.10711512,93432.0,93406.0,0.085647]
[1732129818625,0.10711512,93432.0,93429.0,0.085626]
[1732129818852,0.10711512,93432.0,93431.0,0.085624]
[1732129819067,0.09444512,93435.0,93409.0,0.01]
[1732129819278,0.0803,93436.0,93426.0,0.085628]
[1732129819279,0.107029,93432.0,93426.0,0.085628]
[1732129819486,0.28186024,93436.0,93409.0,0.01]
[1732129819487,0.107036,93427.0,93421.0,0.085633]
[1732129819661,0.28186024,93436.0,93421.0,0.085633]
[1732129819662,0.09444512,93435.0,93421.0,0.085633]
[1732129819814,0.107031,93431.0,93426.0,0.171258]
[1732129820021,0.214057,93433.0,93421.0,0.085633]
[1732129820220,0.107031,93431.0,93421.0,0.085633]
[1732129820435,0.107031,93431.0,93425.0,0.085629]
[1732129820812,0.214057,93433.0,93425.0,0.085629]
[1732129820813,0.107032,93430.0,93425.0,0.085629]
[1732129821025,0.09474504,93434.0,93425.0,0.085629]
[1732129821246,0.107028,93434.0,93429.0,0.085625]
[1732129821657,0.107029,93433.0,93429.0,0.085625]
[1732129821858,0.0803,93436.0,93420.0,0.085634]
[1732129822097,0.14211756,93440.0,93438.0,0.085618]
[1732129822436,0.09476504,93442.0,93441.0,0.085615]
[1732129822694,0.14211756,93444.0,93443.0,0.085613]
[1732129822900,0.18949008,93446.0,93445.0,0.085611]
[1732129822901,0.14211756,93446.0,93445.0,0.085611]
[1732129823104,0.18949008,93449.0,93446.0,0.08561]
[1732129823313,0.10711512,93448.0,93446.0,0.08561]
[1732129823522,0.09477325,93447.0,93446.0,0.08561]
[1732129823730,0.21412612,93448.0,93443.0,0.085612]
[1732129823936,0.21412612,93448.0,93444.0,0.085612]
[1732129824158,0.10711512,93448.0,93446.0,0.08561]
[1732129824366,0.10711512,93448.0,93442.0,0.085614]
[1732129824574,0.107013,93446.0,93423.0,0.085632]
[1732129824779,0.107017,93444.0,93438.0,0.085617]
[1732129824990,0.10711512,93448.0,93422.0,0.15449093]
[1732129825255,0.107013,93446.0,93423.0,0.171264]
[1732129825472,0.10711512,93448.0,93439.0,0.085616]
[1732129825677,0.10711512,93448.0,93422.0,0.15449093]
[1732129825678,0.26769967,93448.0,93438.0,0.085618]
[1732129825884,0.26769967,93448.0,93439.0,0.085617]
[1732129825885,0.107016,93444.0,93439.0,0.085617]
[1732129826666,0.20185431,93448.0,93422.0,0.05449093]
[1732129826667,0.09473919,93447.0,93422.0,0.05449093]
[1732129826886,0.10711512,93448.0,93441.0,0.085615]
[1732129826887,0.107015,93445.0,93441.0,0.085615]
[1732129827083,0.107013,93447.0,93443.0,0.085613]
[1732129827285,0.107013,93446.0,93441.0,0.085614]
[1732129827886,0.107014,93446.0,93439.0,0.085616]
[1732129828059,0.10711512,93448.0,93439.0,0.085616]
[1732129828060,0.10711512,93448.0,93439.0,0.085617]
[1732129828295,0.10711512,93448.0,93447.0,0.08561]
[1732129828920,0.0017122,93451.0,93449.0,0.085608]
[1732129829108,0.0017122,93451.0,93450.0,0.085607]
[1732129829340,0.17741743,93458.0,93450.0,0.085607]
[1732129829341,0.321004,93457.0,93450.0,0.085607]
[1732129829600,0.107003,93455.0,93450.0,0.085607]
[1732129829816,0.107003,93455.0,93448.0,0.085609]
[1732129829817,0.10711512,93455.0,93448.0,0.085609]
[1732129830044,0.0827,93458.0,93433.0,0.01]
[1732129830268,0.5,93464.0,93462.0,0.085595]
[1732129830486,0.5,93464.0,93463.0,0.085595]
[1732129830694,0.5,93464.0,93440.0,0.01]
[1732129831111,0.5,93464.0,93441.0,0.085615]
[1732129831324,0.12285461,93457.0,93432.0,0.1]
[1732129831568,0.107026,93435.0,93429.0,0.085625]
[1732129831787,0.107034,93428.0,93423.0,0.085631]
[1732129831988,0.107027,93435.0,93430.0,0.08756354]
[1732129832206,0.107028,93434.0,93425.0,0.0008561]
[1732129832409,0.107027,93434.0,93431.0,0.00180871]
[1732129832619,0.107027,93434.0,93426.0,0.085628]
[1732129832620,0.107025,93437.0,93426.0,0.085628]
[1732129832874,0.107025,93436.0,93432.0,0.00180753]
[1732129833095,0.107025,93436.0,93431.0,0.085624]
[1732129833713,0.10711512,93437.0,93426.0,0.085628]
[1732129833714,0.107028,93434.0,93432.0,0.00180871]
[1732129833919,0.10711512,93437.0,93432.0,0.00180871]
[1732129834132,0.107028,93434.0,93433.0,0.00180694]
[1732129834335,0.60711512,93434.0,93425.0,0.0008561]
[1732129834534,0.107036,93426.0,93425.0,0.0008561]
[1732129834758,0.29605112,93426.0,93425.0,0.0008561]
[1732129834964,0.0819,93437.0,93425.0,0.0008561]
[1732129835183,0.09468413,93442.0,93426.0,0.085629]
[1732129835418,0.09468413,93453.0,93427.0,0.085628]
[1732129835628,0.5,93460.0,93427.0,0.085628]
[1732129835629,0.09468413,93465.0,93458.0,0.085599]
[1732129835871,0.2194262,93468.0,93462.0,0.085596]
[1732129835872,0.0774,93468.0,93462.0,0.085596]
[1732129836102,0.10711512,93465.0,93438.0,0.085617]
[1732129836315,0.0774,93468.0,93464.0,0.085593]
[1732129836548,0.17208413,93468.0,93439.0,0.01182515]
[1732129836764,0.106993,93464.0,93459.0,0.085598]
[1732129836979,0.10699,93467.0,93462.0,0.085595]
[1732129837200,0.10699,93467.0,93439.0,0.095617]
[1732129837201,0.0774,93468.0,93461.0,0.085596]
[1732129837418,0.0774,93468.0,93462.0,0.085596]
[1732129837419,0.1087034,93466.0,93462.0,0.085596]
[1732129837627,0.0017124,93466.0,93462.0,0.00181217]
[1732129837841,0.1087034,93466.0,93462.0,0.08740817]
[1732129838042,0.1087034,93466.0,93450.0,0.085606]
[1732129838043,0.106992,93465.0,93460.0,0.085597]
[1732129838245,0.106992,93465.0,93461.0,0.085597]
[1732129838439,0.0017124,93466.0,93461.0,0.08740917]
[1732129838553,0.0017124,93466.0,93462.0,0.085595]
[1732129838754,0.0017124,93466.0,93450.0,0.085606]
[1732129838755,0.0017124,93466.0,93450.0,0.04349722]
[1732129839005,0.0017124,93466.0,93463.0,0.085595]
[1732129839581,0.106991,93465.0,93464.0,0.00181099]
[1732129839769,0.0017124,93466.0,93464.0,0.00181099]
[1732129839973,0.0017124,93466.0,93461.0,0.085597]
[1732129840165,0.1087024,93466.0,93461.0,0.085597]
[1732129840505,0.0017124,93466.0,93461.0,0.085597]
[1732129840728,0.0017124,93466.0,93459.0,0.085598]
[1732129840881,0.106993,93464.0,93459.0,0.085598]
[1732129841095,0.0017098,93464.0,93461.0,0.085596]
[1732129841432,0.0017098,93464.0,93463.0,0.085594]
[1732129841730,0.0017098,93464.0,93463.0,0.08740541]
[1732129842096,0.0017098,93464.0,93463.0,0.00181041]
[1732129842656,0.0017098,93464.0,93462.0,0.085595]
[1732129842911,0.0017098,93464.0,93463.0,0.08740541]
[1732129846213,0.0017098,93464.0,93463.0,0.13094603]
[1732129846419,0.0017098,93464.0,93463.0,0.13201581]
[1732129846674,0.0017098,93464.0,93463.0,0.13094603]
[1732129847664,0.0017098,93464.0,93463.0,0.24094603]
[1732129848519,0.0017098,93464.0,93463.0,0.23094603]
[1732129848740,0.0017098,93464.0,93463.0,0.13094603]
[1732129860223,0.0017098,93464.0,93463.0,0.08740541]
[1732129861228,0.0017098,93464.0,93463.0,0.00181041]
[1732129861229,0.29731792,93464.0,93463.0,0.00181041]
[1732129861364,0.30835894,93464.0,93463.0,0.00181041]
[1732129861560,0.20136594,93464.0,93455.0,0.0971569]
[1732129861811,0.106997,93461.0,93456.0,0.096301]
[1732129862014,0.32110312,93463.0,93457.0,0.096299]
[1732129862015,0.10711512,93463.0,93457.0,0.096299]
[1732129862277,0.106995,93462.0,93458.0,0.096299]
[1732129862477,0.10711512,93463.0,93458.0,0.096299]
[1732129862478,0.10711512,93463.0,93459.0,0.096298]
[1732129862680,0.09425082,93464.0,93455.0,0.0008549]
[1732129862681,0.0017098,93464.0,93463.0,0.096294]
[1732129863204,0.0017098,93464.0,93463.0,0.09801919]
[1732129870949,0.0017098,93464.0,93463.0,0.00172519]
[1732129871086,0.0017098,93464.0,93463.0,0.09801919]
[1732129871290,0.0017098,93464.0,93463.0,0.00172519]
[1732129871491,0.0017098,93464.0,93463.0,0.096294]
[1732129871691,0.0017098,93464.0,93455.0,0.0971569]
[1732129871692,0.0812,93463.0,93459.0,0.096297]
[1732129871894,0.0812,93463.0,93455.0,0.0008549]
[1732129872108,0.0812,93463.0,93457.0,0.0963]
[1732129872332,0.107002,93456.0,93455.0,0.0008549]
[1732129872532,0.33697173,93456.0,93455.0,0.0008549]
[1732129872744,0.45827173,93456.0,93455.0,0.0008549]
[1732129872951,0.5,93446.0,93437.0,0.09632]
[1732129873153,0.5,93446.0,93425.0,0.0008561]
[1732129873154,0.0752,93444.0,93425.0,0.0008561]
[1732129873398,0.214036,93442.0,93429.0,0.096329]
[1732129873593,0.107024,93437.0,93432.0,0.096326]
[1732129873792,0.00667916,93436.0,93428.0,0.09633]
[1732129874017,0.00667916,93435.0,93434.0,0.096323]
[1732129874395,0.00667916,93439.0,93436.0,0.096322]
[1732129874575,0.00667916,93438.0,93434.0,0.09788955]
[1732129874871,0.00667916,93439.0,93437.0,0.00156714]
[1732129875106,0.06716557,93438.0,93433.0,0.096325]
[1732129875329,0.107023,93438.0,93433.0,0.096325]
[1732129875573,0.11379428,93440.0,93427.0,0.14042297]
[1732129875865,0.04077622,93438.0,93433.0,0.096325]
[1732129876101,0.14779922,93438.0,93433.0,0.096325]
[1732129876384,0.08530052,93437.0,93433.0,0.096325]
[1732129876623,0.08530052,93437.0,93434.0,0.096324]
[1732129876880,0.10711512,93440.0,93434.0,0.096323]
[1732129877170,0.107021,93439.0,93434.0,0.096323]
[1732129877410,0.107021,93439.0,93431.0,0.0971809]
[1732129877411,0.10711512,93440.0,93439.0,0.096319]
[1732129877647,0.107021,93439.0,93433.0,0.096325]
[1732129877908,0.107023,93438.0,93432.0,0.096325]
[1732129878131,0.107023,93438.0,93433.0,0.096325]
[1732129878764,0.0298669,93437.0,93435.0,0.096323]
[1732129878994,0.10711512,93440.0,93439.0,0.096319]
[1732129879196,0.0752,93444.0,93432.0,0.096326]
[1732129879397,0.10711512,93443.0,93431.0,0.0008549]
[1732129879600,0.321057,93441.0,93432.0,0.096326]
[1732129879800,0.107023,93438.0,93431.0,0.0008549]
[1732129880012,0.10711512,93437.0,93433.0,0.096325]
[1732129880245,0.0752,93444.0,93431.0,0.0008549]
[1732129880714,0.0752,93444.0,93442.0,0.096316]
[1732129881411,0.0752,93444.0,93443.0,0.096315]
[1732129881608,0.0752,93444.0,93431.0,0.0008549]
[1732129881609,0.0752,93444.0,93438.0,0.09632]
[1732129881829,0.107029,93432.0,93431.0,0.0008549]
[1732129882040,0.214056,93434.0,93431.0,0.0008549]
[1732129882041,0.107022,93439.0,93431.0,0.0008549]
[1732129882283,0.10711512,93438.0,93434.0,0.096324]
[1732129882494,0.10681512,93438.0,93434.0,0.096324]
[1732129882705,0.10681512,93438.0,93431.0,0.0971819]
[1732129882706,0.107029,93432.0,93431.0,0.0008549]
[1732129882910,0.21414412,93432.0,93431.0,0.0008549]
[1732129885635,0.29244412,93432.0,93431.0,0.0008549]
[1732129887891,0.79244412,93432.0,93431.0,0.0008549]
[1732129890183,0.0017102,93439.0,93431.0,0.0008549]
[1732129890379,0.10711512,93438.0,93435.0,0.08562]
[1732129890674,0.10711512,93438.0,93431.0,0.0008549]
[1732129890878,0.107025,93436.0,93431.0,0.0864789]
[1732129891078,0.107025,93436.0,93432.0,0.00167755]
[1732129891275,0.107025,93436.0,93432.0,0.085623]
[1732129891572,0.107029,93432.0,93431.0,0.0008549]
[1732129891790,0.29454412,93432.0,93431.0,0.0008549]
[1732129892166,0.18751512,93432.0,93431.0,0.0864789]
[1732129892309,0.10711512,93432.0,93431.0,0.0864789]
[1732129892523,0.21414412,93432.0,93431.0,0.0008549]
[1732129892950,0.10711512,93432.0,93431.0,0.0008549]
[1732129893641,0.21414412,93432.0,93431.0,0.0008549]
[1732129893996,0.10711512,93432.0,93431.0,0.0008549]
[1732129894194,0.2890645,93432.0,93431.0,0.0008549]
[1732129894646,0.21414412,93432.0,93431.0,0.0008549]
[1732129896160,0.10711512,93432.0,93431.0,0.0008549]
[1732129897303,0.21414412,93432.0,93431.0,0.0008549]
[1732129898249,0.10711512,93432.0,93431.0,0.0008549]
[1732129898774,0.10711512,93432.0,93427.0,0.085627]
[1732129898974,0.10711512,93432.0,93431.0,0.085624]
[1732129899360,0.10711512,93432.0,93431.0,0.00168578]
[1732129899576,0.21414412,93432.0,93431.0,0.00168578]
[1732129899793,0.21414412,93432.0,93425.0,0.0008561]
[1732129899794,0.107032,93430.0,93425.0,0.0864851]
[1732129900042,0.10703,93431.0,93425.0,0.0864851]
[1732129900403,0.21414412,93432.0,93427.0,0.085628]
[1732129900551,0.10711512,93432.0,93426.0,0.00168782]
[1732129900758,0.21414412,93432.0,93427.0,0.085627]
[1732129901087,0.21414412,93432.0,93431.0,0.000855]
[1732129902374,0.29175588,93432.0,93431.0,0.000855]
[1732129905184,0.21414412,93432.0,93431.0,0.000855]
[1732129905421,0.10711512,93432.0,93431.0,0.000855]
[1732129905548,0.21414412,93432.0,93431.0,0.000855]
[1732129906706,0.10711512,93432.0,93431.0,0.000855]
[1732129906925,0.00171,93438.0,93435.0,0.08562]
[1732129907132,0.00171,93438.0,93436.0,0.00162484]
[1732129907339,0.00171,93438.0,93436.0,0.08724384]
[1732129907654,0.00171,93438.0,93436.0,0.00162484]
[1732129908090,0.00171,93438.0,93437.0,0.085619]
[1732129908292,0.00171,93438.0,93436.0,0.00162484]
[1732129908475,0.00171,93438.0,93435.0,0.08562]
[1732129908476,0.00171,93438.0,93437.0,0.00162416]
[1732129908753,0.00171,93438.0,93381.0,0.01]
[1732129908754,0.51,93404.0,93381.0,0.01]
[1732129908947,0.29037712,93403.0,93382.0,0.085669]
[1732129909143,0.29037712,93403.0,93395.0,0.04439795]
[1732129909278,0.29037712,93403.0,93383.0,0.00107077]
[1732129909279,0.29037712,93403.0,93383.0,0.085668]
[1732129909484,0.29037712,93403.0,93389.0,0.135662]
[1732129909825,0.29037712,93403.0,93390.0,0.04331253]
[1732129910280,0.29037712,93403.0,93392.0,0.085659]
[1732129910485,0.5,93404.0,93390.0,0.04331253]
[1732129910693,0.28378852,93423.0,93399.0,0.0865096]
[1732129910694,0.09459617,93414.0,93399.0,0.0865096]
[1732129910897,0.09459617,93421.0,93400.0,0.048]
[1732129911220,0.18919235,93426.0,93405.0,0.12285461]
[1732129911221,0.09459617,93426.0,93405.0,0.12285461]
[1732129911421,0.09459617,93431.0,93430.0,0.085625]
[1732129911617,0.09459617,93431.0,93408.0,0.01]
[1732129911618,0.00171,93438.0,93437.0,0.085619]
[1732129913454,0.00171,93438.0,93437.0,0.128324]
[1732129914036,0.00171,93438.0,93437.0,0.042705]
[1732129914258,0.00171,93438.0,93433.0,0.085622]
[1732129914586,0.00171,93438.0,93435.0,0.08562]
[1732129914719,0.00171,93438.0,93433.0,0.085622]
[1732129914919,0.00171,93438.0,93436.0,0.085619]
[1732129915157,0.00171,93438.0,93433.0,0.04376024]
[1732129915362,0.00171,93438.0,93430.0,0.0008551]
[1732129915363,0.214049,93437.0,93430.0,0.0008551]
[1732129915562,0.10703,93431.0,93430.0,0.0008551]
[1732129916139,0.11370929,93431.0,93430.0,0.0008551]
[1732129916398,0.10703,93431.0,93430.0,0.0008551]
[1732129916588,0.11370929,93431.0,93430.0,0.0008551]
[1732129916809,0.00667929,93431.0,93430.0,0.0008551]
[1732129917208,0.09483103,93433.0,93430.0,0.0008551]
[1732129917470,0.09483103,93433.0,93432.0,0.085623]
[1732129917841,0.19137206,93438.0,93432.0,0.085623]
[1732129917842,0.00171,93438.0,93436.0,0.08562]
[1732129918234,0.00171,93438.0,93437.0,0.085619]
[1732129918409,0.00171,93438.0,93437.0,0.20401254]
[1732129918608,0.00171,93438.0,93437.0,0.3150826]
[1732129918829,0.00171,93438.0,93437.0,0.31401254]
[1732129919842,0.00171,93438.0,93437.0,0.35733629]
[1732129921674,0.00171,93438.0,93437.0,0.35233629]
[1732129922325,0.00171,93438.0,93437.0,0.34733629]
[1732129922453,0.00171,93438.0,93437.0,0.23022117]
[1732129922680,0.00171,93438.0,93437.0,0.22022117]
[1732129923350,0.00171,93438.0,93437.0,0.12022117]
[1732129923539,0.00171,93438.0,93437.0,0.04460217]
[1732129923724,0.00171,93438.0,93437.0,0.00127842]
[1732129924018,0.108732,93438.0,93435.0,0.04302419]
[1732129924199,0.10711512,93437.0,93411.0,0.01]
[1732129924349,0.10711512,93437.0,93430.0,0.0864791]
[1732129924350,0.21413912,93437.0,93430.0,0.0864791]
[1732129924549,0.107025,93436.0,93430.0,0.0008551]
[1732129924775,0.21414012,93436.0,93430.0,0.0008551]
[1732129925183,0.214052,93435.0,93430.0,0.0008551]
[1732129925380,0.60703,93431.0,93430.0,0.0008551]
[1732129925555,0.71414512,93431.0,93430.0,0.0008551]
[1732129925761,0.79354512,93431.0,93430.0,0.0008551]
[1732129925957,0.80022558,93431.0,93430.0,0.0008551]
[1732129926160,0.90928813,93431.0,93430.0,0.0008551]
[1732129926996,0.90260767,93431.0,93430.0,0.0008551]
[1732129927862,0.79354512,93431.0,93430.0,0.0008551]
[1732129928739,0.88823683,93431.0,93430.0,0.0008551]
[1732129929502,1.09116957,93431.0,93430.0,0.0008551]
[1732129929710,1.09647786,93431.0,93430.0,0.0008551]
[1732129929910,0.107058,93408.0,93402.0,0.0865074]
[1732129930106,0.10705,93415.0,93409.0,0.085644]
[1732129930318,0.10705,93415.0,93410.0,0.085643]
[1732129930545,0.107044,93419.0,93412.0,0.085641]
[1732129930883,0.10711512,93418.0,93413.0,0.00113416]
[1732129931005,0.21416112,93418.0,93413.0,0.00113416]
[1732129931210,0.10711512,93418.0,93413.0,0.08564]
[1732129931413,0.107048,93416.0,93411.0,0.085642]
[1732129931646,0.10711512,93416.0,93414.0,0.085639]
[1732129931850,0.10711512,93416.0,93413.0,0.08564]
[1732129932297,0.10711512,93416.0,93414.0,0.00113144]
[1732129932448,0.09467649,93424.0,93423.0,0.085632]
[1732129932656,0.09467649,93425.0,93423.0,0.085632]
[1732129932877,0.09467649,93426.0,93424.0,0.085631]
[1732129933074,0.10711512,93426.0,93425.0,0.08563]
[1732129933303,0.09467649,93433.0,93412.0,0.18293274]
[1732129933562,0.09467649,93436.0,93432.0,0.085623]
[1732129933837,0.00171,93438.0,93437.0,0.085619]
[1732129934252,0.00171,93438.0,93437.0,0.08673208]
[1732129934454,0.00171,93438.0,93437.0,0.085619]
[1732129934752,0.00171,93438.0,93437.0,0.08673208]
[1732129937131,0.00171,93438.0,93437.0,0.00111308]
[1732129937331,0.108732,93438.0,93437.0,0.000855]
[1732129937558,0.108732,93438.0,93437.0,0.00196808]
[1732129937559,0.00171,93438.0,93437.0,0.00196808]
[1732129938103,0.00171,93438.0,93437.0,0.08758708]
[1732129939007,0.00171,93438.0,93437.0,0.56603494]
[1732129939320,0.00171,93438.0,93437.0,0.57603494]
[1732129939515,0.00171,93438.0,93437.0,0.3831022]
[1732129939666,0.00171,93438.0,93437.0,0.3931022]
[1732129940871,0.00171,93438.0,93437.0,0.57603494]
[1732129941840,0.0017098,93464.0,93463.0,0.085595]
[1732129942192,0.0017098,93464.0,93463.0,0.0877658]
[1732129943184,0.0017098,93464.0,93463.0,0.08669599]
[1732129945191,0.0017098,93464.0,93463.0,0.08669599]
[1732129945651,0.0017114,93492.0,93469.0,0.18293274]
[1732129945855,0.0017114,93492.0,93464.0,0.085594]
[1732129945856,0.0017114,93492.0,93490.0,0.08557]
[1732129946014,0.0017114,93492.0,93490.0,0.08663947]
[1732129946994,0.0017114,93492.0,93490.0,0.08557]
[1732129947663,0.0017114,93492.0,93490.0,0.2286143]
[1732129948675,0.0017114,93492.0,93490.0,0.1286143]
[1732129948886,0.0017114,93492.0,93471.0,0.01]
[1732129949091,0.0017114,93492.0,93469.0,0.085589]
[1732129949092,0.1086734,93491.0,93469.0,0.01]
[1732129949318,0.0017114,93491.0,93485.0,0.085574]
[1732129949530,0.0017114,93491.0,93470.0,0.085588]
[1732129949729,0.0017114,93491.0,93488.0,0.085572]
[1732129949930,0.0017114,93491.0,93488.0,0.171143]
[1732129950144,0.0017114,93491.0,93490.0,0.08557]
[1732129952437,0.0017114,93491.0,93475.0,0.01]
[1732129952438,0.0017114,93491.0,93483.0,0.085577]
[1732129952695,0.0017114,93491.0,93465.0,0.01]